bitfinex/quotes_ETHUSD_20240719
["timestamp","ask_amount","ask_price","bid_price","bid_amount"]
[1721416332218,2.65194767,3529.3,3528.9,5.6667]
[1721416332419,0.2502,3529.5,3528.9,5.6667]
[1721416332988,3.08346,3529.5,3528.9,5.6667]
[1721416333189,2.83316,3529.7,3529.0,0.04304073]
[1721416333390,2.502,3529.5,3529.0,0.04304073]
[1721416334227,3.0,3529.4,3529.0,0.04304073]
[1721416335598,2.8335,3529.2,3529.0,0.04304073]
[1721416336042,2.83358,3529.1,3529.0,0.04304073]
[1721416336535,5.66716,3529.1,3529.0,0.04304073]
[1721416336740,13.80734,3529.1,3529.0,0.04304073]
[1721416336893,10.97376,3529.1,3529.0,0.04304073]
[1721416337315,13.47576,3529.1,3529.0,0.04304073]
[1721416337517,11.16916,3529.1,3529.0,0.04304073]
[1721416338533,5.502,3529.1,3529.0,0.04304073]
[1721416338845,7.48562534,3529.1,3529.0,0.04304073]
[1721416339702,4.65204534,3529.1,3529.0,0.04304073]
[1721416340346,2.83341,3529.4,3529.0,0.04304073]
[1721416341597,5.83343,3529.3,3529.0,0.04304073]
[1721416342331,3.0,3529.3,3529.0,0.04304073]
[1721416342643,5.83342,3529.3,3529.0,0.04304073]
[1721416343037,3.0,3529.3,3529.0,0.04304073]
[1721416343242,5.33533,3529.5,3529.0,0.04304073]
[1721416343243,3.0,3529.4,3529.0,0.04304073]
[1721416343649,5.83337,3529.4,3529.0,0.04304073]
[1721416345517,4.98341534,3529.4,3529.0,0.04304073]
[1721416349042,2.15004534,3529.4,3529.0,0.04304073]
[1721416349864,4.98339534,3529.4,3529.0,0.04304073]
[1721416350038,2.15004534,3529.4,3529.0,0.04304073]
[1721416350731,2.83344,3529.3,3529.0,0.04304073]
[1721416350927,3.0,3529.2,3529.0,0.04304073]
[1721416351255,2.83358,3529.1,3529.0,0.04304073]
[1721416351469,5.8335,3529.2,3529.0,0.04304073]
[1721416351649,5.33558,3529.1,3529.0,0.04304073]
[1721416351990,11.16916,3529.1,3529.0,0.04304073]
[1721416352136,5.502,3529.1,3529.0,0.04304073]
[1721416352337,3.0,3529.1,3529.0,0.04304073]
[1721416352641,4.98338534,3529.4,3529.0,0.04304073]
[1721416359200,2.15004534,3529.4,3529.0,0.04304073]
[1721416359493,2.502,3529.5,3529.0,0.04304073]
[1721416359865,5.33526,3529.5,3529.0,0.04304073]
[1721416360791,2.502,3529.5,3529.0,0.04304073]
[1721416360945,2.83343,3529.3,3529.0,0.04304073]
[1721416361346,5.33558,3529.1,3529.0,0.04304073]
[1721416361586,8.33558,3529.1,3529.0,0.04304073]
[1721416362611,5.83358,3529.1,3529.0,0.04304073]
[1721416362771,3.0,3529.1,3529.0,0.04304073]
[1721416363098,5.83358,3529.1,3529.0,0.04304073]
[1721416364764,5.83358,3529.1,3528.9,5.6667]
[1721416366055,4.98362534,3529.1,3528.9,5.6667]
[1721416366271,2.83358,3529.1,3528.9,5.6667]
[1721416366978,5.33526,3529.5,3528.9,5.6667]
[1721416367184,2.83342,3529.3,3528.9,5.6667]
[1721416368309,3.0,3529.2,3528.9,5.6667]
[1721416371312,5.83352,3529.2,3528.9,5.6667]
[1721416371617,2.83366,3529.0,3528.9,5.6667]
[1721416372784,5.83352,3529.2,3528.9,5.6667]
[1721416373006,2.83366,3529.0,3528.9,5.6667]
[1721416374115,3.87666,3529.0,3528.9,5.6667]
[1721416379521,1.043,3529.0,3528.9,5.6667]
[1721416380114,3.87666,3529.0,3528.9,5.6667]
[1721416382653,1.043,3529.0,3528.9,5.6667]
[1721416386335,0.19304534,3529.0,3528.9,5.6667]
[1721416388325,3.02670534,3529.0,3528.9,5.6667]
[1721416390345,0.19304534,3529.0,3528.9,5.6667]
[1721416393042,1.043,3529.0,3528.9,5.6667]
[1721416393249,3.0,3529.2,3528.9,5.6667]
[1721416393530,3.0,3529.1,3528.9,5.6667]
[1721416393736,3.0,3529.1,3529.0,0.04308027]
[1721416393931,3.0,3529.4,3529.0,0.04308027]
[1721416394138,3.0,3529.4,3528.9,5.6667]
[1721416394364,3.0,3529.4,3529.0,0.04308027]
[1721416394532,1.043,3529.1,3529.0,0.04308027]
[1721416399135,1.043,3529.1,3528.9,5.6667]
[1721416399633,0.19304534,3529.1,3528.9,5.6667]
[1721416401835,3.0,3529.2,3528.9,5.6667]
[1721416402961,1.043,3529.0,3528.9,5.6667]
[1721416406434,0.19304534,3529.0,3528.9,5.6667]
[1721416407656,1.043,3529.0,3528.9,5.6667]
[1721416407881,3.0,3529.3,3528.9,5.6667]
[1721416408090,3.0,3529.4,3528.9,5.6667]
[1721416408691,3.0,3529.4,3529.0,0.04302094]
[1721416409090,5.83336,3529.4,3529.0,0.04302094]
[1721416409451,1.043,3529.1,3529.0,0.04302094]
[1721416410891,1.043,3529.1,3528.9,5.6667]
[1721416412281,3.0,3529.2,3528.9,5.6667]
[1721416412282,1.043,3529.0,3528.9,5.6667]
[1721416413201,0.19290083,3529.0,3528.9,5.6667]
[1721416413768,1.043,3529.0,3528.9,5.70888525]
[1721416414337,2.83335,3529.4,3528.9,5.70888525]
[1721416414642,1.043,3529.0,3528.9,5.70888525]
[1721416417733,3.0,3529.3,3528.9,5.70888525]
[1721416417956,0.13845218,3530.3,3529.0,2.4909]
[1721416418100,0.13845218,3530.3,3529.9,2.83287]
[1721416418434,0.13845218,3530.3,3530.1,5.32361]
[1721416418611,0.13845218,3530.3,3530.2,5.6654]
[1721416418815,1.043,3531.3,3530.2,9.58281745]
[1721416419019,1.043,3531.3,3530.3,2.83259]
[1721416419347,5.28389,3531.7,3530.4,8.53930136]
[1721416419643,1.043,3531.3,3530.4,8.53930136]
[1721416420207,2.83149,3531.7,3530.5,2.83245]
[1721416420403,2.83149,3531.7,3530.6,5.6648]
[1721416420609,2.83149,3531.7,3530.6,5.70621055]
[1721416421540,3.0,3531.6,3530.6,5.70621055]
[1721416421906,3.0,3531.7,3530.6,5.70621055]
[1721416422602,5.8315,3531.7,3530.6,5.70621055]
[1721416422804,2.4152,3531.6,3530.6,5.70621055]
[1721416423014,2.8322,3530.9,3530.6,5.70621055]
[1721416423214,2.8322,3530.9,3530.6,5.6648]
[1721416423455,3.0,3530.8,3530.6,5.6648]
[1721416424050,3.0,3530.8,3530.7,0.03851059]
[1721416424452,3.0,3531.0,3530.7,0.03851059]
[1721416424653,5.83206,3531.0,3530.7,0.03851059]
[1721416424948,5.83206,3531.0,3530.6,5.6648]
[1721416424949,3.0,3531.0,3530.6,5.6648]
[1721416425251,3.0,3531.0,3530.7,0.03583911]
[1721416425622,3.0,3531.0,3530.6,5.6648]
[1721416425920,2.83214,3530.9,3530.6,5.6648]
[1721416426124,5.83223,3530.8,3530.6,5.6648]
[1721416426457,2.83223,3530.8,3530.6,5.6648]
[1721416426683,5.83229,3530.7,3530.6,5.6648]
[1721416426824,3.0,3530.7,3530.6,5.6648]
[1721416427160,3.0,3530.8,3530.6,5.6648]
[1721416427327,2.83229,3530.7,3530.6,5.6648]
[1721416427529,5.83229,3530.7,3530.6,5.6648]
[1721416428138,8.66458,3530.7,3530.6,5.6648]
[1721416428358,16.81076,3530.7,3530.6,4.38518763]
[1721416428517,16.81076,3530.7,3529.0,0.85009917]
[1721416428518,6.0316,3530.7,3529.0,0.85009917]
[1721416428719,2.83309,3529.8,3529.1,0.03518953]
[1721416428915,2.83287,3530.0,3529.1,0.03518953]
[1721416429222,3.0,3529.7,3529.1,0.03518953]
[1721416429423,3.0,3529.9,3529.1,0.03518953]
[1721416429723,5.83301,3529.9,3529.1,0.03518953]
[1721416429919,3.0,3529.9,3529.1,0.03518953]
[1721416430130,5.83286,3530.0,3529.1,0.03518953]
[1721416430426,3.0,3530.0,3529.0,0.85009917]
[1721416430755,5.83286,3530.0,3529.0,0.85009917]
[1721416430962,2.83294,3529.9,3529.1,0.03528714]
[1721416431127,3.0,3529.8,3529.1,0.03528714]
[1721416431463,5.83286,3530.0,3529.1,0.03528714]
[1721416431758,3.0,3530.0,3529.1,0.03528714]
[1721416431973,5.83286,3530.0,3529.1,0.03528714]
[1721416432262,3.0,3530.0,3529.1,0.03528714]
[1721416433054,5.83287,3530.0,3529.1,0.03528714]
[1721416433560,3.0,3530.0,3529.1,0.03528714]
[1721416433722,3.0,3530.2,3529.1,0.03528714]
[1721416433926,3.0,3530.5,3529.1,0.03528714]
[1721416434153,3.0,3530.5,3529.0,0.85009917]
[1721416434465,2.83316,3529.7,3529.0,0.85009917]
[1721416434623,3.0,3529.6,3529.0,0.85009917]
[1721416434816,3.0,3529.6,3529.1,0.03533558]
[1721416435418,5.83319,3529.6,3529.1,0.03533558]
[1721416436148,2.83327,3529.5,3529.1,0.03533558]
[1721416436464,2.83327,3529.5,3529.0,0.85009917]
[1721416436629,2.83347,3529.3,3529.0,0.85009917]
[1721416436833,2.83358,3529.1,3529.0,0.85009917]
[1721416437015,3.0,3529.1,3529.0,0.85009917]
[1721416437222,2.83347,3529.3,3529.0,0.85009917]
[1721416437223,3.0,3529.2,3529.0,0.85009917]
[1721416437525,5.83351,3529.2,3529.0,0.85009917]
[1721416437725,2.83358,3529.1,3529.0,0.85009917]
[1721416437972,5.83358,3529.1,3529.0,0.85009917]
[1721416438131,3.0,3529.1,3529.0,0.85009917]
[1721416438360,3.0,3529.2,3529.0,0.85009917]
[1721416438544,2.8335,3529.2,3529.0,0.85009917]
[1721416438729,3.0,3529.1,3529.0,0.85009917]
[1721416439133,3.0,3529.3,3529.0,0.85009917]
[1721416439331,2.83338,3529.4,3529.0,0.85009917]
[1721416439646,3.0,3529.3,3529.0,0.85009917]
[1721416440422,5.83326,3529.5,3529.0,0.85009917]
[1721416440963,5.83326,3529.5,3529.1,0.03345623]
[1721416441261,5.83326,3529.5,3529.0,0.85009917]
[1721416441556,2.83334,3529.4,3529.1,0.03339813]
[1721416441760,3.0,3529.3,3529.1,0.03339813]
[1721416441988,3.0,3529.3,3529.0,0.85009917]
[1721416442457,2.83355,3529.2,3529.1,0.0333648]
[1721416442666,5.83355,3529.2,3529.1,0.0333648]
[1721416442868,5.83355,3529.2,3529.0,0.85009917]
[1721416443054,3.0,3529.1,3529.0,0.85009917]
[1721416443622,3.0,3529.3,3529.0,0.85009917]
[1721416443826,2.83311,3529.7,3529.0,0.85009917]
[1721416444049,5.83324,3529.6,3529.0,0.85009917]
[1721416444221,3.0,3529.6,3529.0,0.85009917]
[1721416444427,2.83351,3529.2,3529.0,0.85009917]
[1721416445329,2.83335,3529.4,3529.0,0.85009917]
[1721416445528,3.0,3529.3,3529.0,0.85009917]
[1721416445729,5.83342,3529.3,3529.0,0.85009917]
[1721416445929,3.0,3529.3,3529.0,0.85009917]
[1721416446130,3.0,3529.4,3529.0,0.85009917]
[1721416446367,3.0,3529.6,3529.1,0.03340543]
[1721416446664,3.0,3529.6,3529.0,0.85009917]
[1721416446665,2.83334,3529.4,3529.0,0.85009917]
[1721416446878,3.0,3529.3,3529.0,0.85009917]
[1721416447055,5.83344,3529.3,3529.1,0.03338447]
[1721416447532,3.0,3529.3,3529.0,0.85009917]
[1721416447739,3.0,3529.4,3529.0,0.85009917]
[1721416448151,5.83339,3529.4,3529.1,0.03335283]
[1721416448356,5.83339,3529.4,3529.0,0.85009917]
[1721416448631,2.83343,3529.3,3529.0,0.85009917]
[1721416449452,2.83352,3529.2,3529.0,0.85009917]
[1721416450984,5.83341,3529.4,3529.0,0.85009917]
[1721416451147,3.0,3529.4,3529.1,2.3213]
[1721416451471,3.0,3529.9,3529.2,0.03323471]
[1721416451675,10.30272,3530.2,3529.2,0.03323471]
[1721416451877,2.83256,3530.4,3529.2,0.03323471]
[1721416451878,2.83256,3530.4,3529.2,2.86672471]
[1721416452081,2.498,3530.6,3529.3,2.3892]
[1721416452082,2.83241,3530.6,3529.3,2.3892]
[1721416452385,2.83241,3530.6,3529.3,2.42235789]
[1721416453459,2.83257,3530.4,3529.3,2.42235789]
[1721416453668,3.0,3530.3,3529.3,3.37726303]
[1721416454261,5.83262,3530.3,3529.3,3.37726303]
[1721416454465,3.0,3530.3,3529.3,2.42235789]
[1721416454771,5.83262,3530.3,3529.3,2.42235789]
[1721416454931,5.83262,3530.3,3529.4,0.03303494]
[1721416455262,2.83289,3530.0,3529.4,0.03303494]
[1721416455458,2.83306,3529.8,3529.4,0.03303494]
[1721416455663,2.83306,3529.8,3529.0,0.85009917]
[1721416455840,2.83321,3529.6,3529.0,0.85009917]
[1721416456033,2.83321,3529.6,3529.1,0.03311912]
[1721416456237,3.0,3529.9,3529.1,0.03311912]
[1721416456886,2.498,3530.5,3529.1,0.36036095]
[1721416457082,2.83275,3530.2,3529.1,0.03311912]
[1721416457398,5.83279,3530.1,3529.1,0.03311912]
[1721416458600,2.83286,3530.0,3529.1,0.03311912]
[1721416458891,3.0,3529.9,3529.1,0.03311912]
[1721416459478,2.8327,3530.2,3529.1,0.03311912]
[1721416459479,3.0,3530.0,3529.1,0.03311912]
[1721416459689,5.83282,3530.1,3529.1,0.03311912]
[1721416460345,2.83326,3529.5,3529.1,0.03311912]
[1721416460674,3.0,3529.4,3529.1,0.03311912]
[1721416461171,3.0,3529.4,3529.0,0.85009917]
[1721416461380,3.0,3529.4,3529.1,0.03313562]
[1721416461545,5.28197,3529.9,3529.1,0.03313562]
[1721416461546,5.66701,3529.2,3529.1,0.03313562]
[1721416461877,5.66701,3529.2,3529.0,0.85009917]
[1721416461878,5.66716,3529.1,3529.0,0.85009917]
[1721416462454,8.66716,3529.1,3529.0,0.85009917]
[1721416463788,14.49974,3529.1,3529.0,0.85009917]
[1721416467385,8.83258,3529.1,3529.0,0.85009917]
[1721416467585,2.83287,3530.0,3529.0,0.85009917]
[1721416467795,5.66716,3529.1,3529.0,0.85009917]
[1721416469807,2.83358,3529.1,3529.0,0.85009917]
[1721416471119,3.0,3529.1,3529.0,0.85009917]
[1721416471411,3.0,3529.4,3529.0,0.85009917]
[1721416471577,2.83357,3529.2,3529.0,0.85009917]
[1721416471772,3.0,3529.1,3529.0,0.85009917]
[1721416472411,3.0,3529.3,3529.0,0.85009917]
[1721416473909,2.83311,3529.7,3529.1,2.327]
[1721416474513,2.83311,3529.7,3529.2,0.03104219]
[1721416475215,3.0,3529.6,3529.2,0.03104219]
[1721416479001,2.83331,3529.5,3529.2,0.03104219]
[1721416479314,2.83342,3529.3,3529.2,0.03104219]
[1721416479516,5.83342,3529.3,3529.0,0.85009917]
[1721416479717,2.83342,3529.3,3529.0,0.85009917]
[1721416479892,2.83331,3529.5,3529.0,0.85009917]
[1721416480088,3.0,3529.4,3529.0,0.85009917]
[1721416480415,3.0,3529.6,3529.0,0.85009917]
[1721416480616,5.83318,3529.6,3529.0,0.85009917]
[1721416483104,2.83327,3529.5,3529.1,0.03084446]
[1721416483423,3.0,3529.4,3529.1,0.03084446]
[1721416483789,3.0,3529.6,3529.1,0.03084446]
[1721416483989,5.83318,3529.6,3529.1,0.03084446]
[1721416484191,2.83327,3529.5,3529.1,0.03084446]
[1721416484403,3.0,3529.4,3529.1,0.03084446]
[1721416485333,2.83348,3529.3,3529.1,0.03084446]
[1721416485825,2.83348,3529.3,3529.0,0.85009917]
[1721416486125,2.83348,3529.3,3529.1,0.02976623]
[1721416490024,3.0,3529.4,3529.1,0.02976623]
[1721416490225,3.0,3529.5,3529.1,0.02976623]
[1721416490539,2.83341,3529.4,3529.1,0.02976623]
[1721416490730,3.0,3529.3,3529.1,0.02976623]
[1721416491326,2.83322,3529.6,3529.1,0.02976623]
[1721416491512,3.0,3529.5,3529.1,0.02976623]
[1721416495750,5.83331,3529.5,3529.1,0.02976623]
[1721416496059,5.83331,3529.5,3529.2,0.02848922]
[1721416496448,2.83335,3529.4,3529.0,0.8298654]
[1721416496614,2.83358,3529.1,3529.0,0.8298654]
[1721416497037,2.83358,3529.2,3529.0,0.8298654]
[1721416497235,2.83358,3529.1,3529.0,0.8298654]
[1721416498111,2.83358,3529.1,3529.0,0.85837162]
[1721416499828,5.66716,3529.1,3529.0,0.85837162]
[1721416500028,8.66716,3529.1,3529.0,0.8298654]
[1721416500430,12.05074,3529.1,3529.0,0.8298654]
[1721416502262,8.66716,3529.1,3529.0,0.85845933]
[1721416502567,11.50074,3529.1,3529.0,0.85845933]
[1721416502888,14.33432,3529.1,3529.0,0.8298654]
[1721416503479,17.38232,3529.1,3529.0,0.8298654]
[1721416503680,2.83466,3527.8,3527.5,11.39]
[1721416503841,2.83466,3527.8,3527.5,4.0]
[1721416503842,2.83471,3527.7,3527.5,4.0]
[1721416504682,2.83449,3528.0,3527.5,4.0]
[1721416504897,2.83416,3528.4,3527.5,4.0]
[1721416505043,5.83427,3528.3,3527.5,4.64766]
[1721416505373,2.83439,3528.1,3527.5,4.64766]
[1721416505536,3.0,3528.0,3527.5,4.0]
[1721416506875,2.8346,3527.9,3527.5,4.0]
[1721416507454,2.83478,3527.6,3527.5,4.0]
[1721416507842,3.0,3527.6,3527.5,4.0]
[1721416508081,5.83478,3527.6,3527.5,4.0]
[1721416509150,8.66956,3527.6,3527.5,4.0]
[1721416514700,7.81946083,3527.6,3527.5,4.0]
[1721416515460,10.65424083,3527.6,3527.5,4.0]
[1721416515701,11.20424083,3527.6,3527.5,4.0]
[1721416516796,14.03902083,3527.6,3527.5,3.16549999]
[1721416518568,14.03902083,3527.6,3525.6,2.2684]
[1721416518569,2.83607,3526.0,3525.6,2.2684]
[1721416518775,2.83592,3526.2,3525.6,2.2684]
[1721416518962,2.83592,3526.2,3525.7,0.02988286]
[1721416519162,2.83601,3526.1,3525.7,0.02988286]
[1721416519677,2.83601,3526.1,3525.6,2.2684]
[1721416519975,2.83601,3526.1,3525.8,0.02985475]
[1721416520284,2.83601,3526.1,3525.6,2.2684]
[1721416520505,2.83608,3526.0,3525.9,0.02982663]
[1721416520794,2.83617,3525.9,3525.6,2.2684]
[1721416521215,2.83623,3525.8,3525.7,0.03005363]
[1721416521359,2.83617,3525.9,3525.7,0.03005363]
[1721416521561,2.83623,3525.8,3525.7,0.03005363]
[1721416521766,5.67246,3525.8,3525.7,0.03005363]
[1721416521966,2.83635,3525.7,3525.1,2.2684]
[1721416522376,2.83639,3525.6,3525.1,2.2684]
[1721416522596,2.83623,3525.8,3525.1,2.2684]
[1721416523006,2.83611,3526.0,3525.1,2.2684]
[1721416523216,2.83593,3526.2,3525.3,2.2684]
[1721416523374,3.0,3526.1,3525.3,2.2684]
[1721416524072,2.83608,3526.0,3525.3,2.2684]
[1721416525003,2.83633,3525.7,3525.3,2.2684]
[1721416525308,2.83621,3525.9,3525.3,2.2684]
[1721416525483,2.83624,3525.8,3525.3,2.2684]
[1721416526622,3.0,3526.1,3525.3,2.2684]
[1721416526797,2.83591,3526.2,3525.3,2.49524]
[1721416527130,3.0,3526.1,3525.3,2.49524]
[1721416527326,5.836,3526.1,3525.3,2.2684]
[1721416527511,2.83621,3525.9,3525.3,2.2684]
[1721416527826,5.83605,3526.1,3525.3,2.2684]
[1721416527987,4.98595083,3526.1,3525.3,2.2684]
[1721416528191,4.98595083,3526.1,3525.4,0.03013798]
[1721416528637,2.14990083,3526.1,3525.4,0.03013798]
[1721416528932,2.83589,3526.3,3525.4,0.25999178]
[1721416529347,2.83589,3526.3,3525.4,0.03013798]
[1721416529558,2.498,3526.7,3525.4,0.03013798]
[1721416529835,2.83597,3526.2,3525.4,0.03013798]
[1721416530200,3.0,3526.1,3525.4,0.03013798]
[1721416532030,2.83561,3526.6,3525.4,0.08686411]
[1721416532241,2.498,3527.1,3525.7,2.4553]
[1721416532401,2.83557,3526.7,3525.7,2.4553]
[1721416532602,2.83581,3526.4,3525.8,0.03006131]
[1721416532843,2.83568,3526.5,3525.8,0.03006131]
[1721416533044,3.0,3526.4,3525.8,0.03006131]
[1721416533247,5.83581,3526.4,3525.8,0.03006131]
[1721416533799,5.83576,3526.4,3525.8,0.03006131]
[1721416534120,3.0,3526.4,3525.7,2.4553]
[1721416534300,3.0,3526.4,3525.9,0.0300332]
[1721416534641,3.0,3526.4,3525.7,5.29161]
[1721416534929,5.83552,3526.7,3525.7,3.268113]
[1721416535096,5.83552,3526.7,3525.8,0.03006131]
[1721416535525,3.0,3526.7,3525.8,0.03006131]
[1721416535737,5.83543,3526.8,3525.9,2.3102]
[1721416536059,2.83569,3526.5,3525.9,2.3402332]
[1721416536264,2.83587,3526.3,3525.9,2.3402332]
[1721416536426,2.83587,3526.3,3525.9,0.0300332]
[1721416536627,2.83587,3526.3,3525.5,2.3102]
[1721416537107,2.83587,3526.3,3525.6,0.03025114]
[1721416540253,3.0,3526.8,3525.6,0.03025114]
[1721416540577,2.83604,3526.1,3525.6,0.03025114]
[1721416540936,5.83607,3526.0,3525.6,0.03025114]
[1721416541536,5.498,3526.4,3525.6,0.03025114]
[1721416541850,2.83647,3525.5,3525.4,7.39]
[1721416542032,2.83647,3525.5,3525.0,2.4791]
[1721416542238,2.83627,3525.8,3525.4,0.03031151]
[1721416542545,2.83627,3525.8,3525.5,0.03034956]
[1721416542760,2.83627,3525.8,3525.0,2.4791]
[1721416542971,2.83631,3525.7,3525.6,0.03032144]
[1721416543149,2.83639,3525.6,3525.0,2.4791]
[1721416543676,2.83651,3525.5,3525.0,2.4791]
[1721416544053,2.83669,3525.3,3525.0,2.4791]
[1721416544397,2.83651,3525.5,3525.0,2.4791]
[1721416544983,2.83663,3525.3,3525.0,2.4791]
[1721416545292,2.83651,3525.5,3525.0,2.4791]
[1721416545954,2.83655,3525.4,3525.0,2.4791]
[1721416548299,2.8366,3525.4,3525.0,2.4791]
[1721416548875,2.83664,3525.3,3524.8,7.39]
[1721416549080,2.8366,3525.4,3524.8,7.39]
[1721416549322,2.8366,3525.4,3524.9,0.03069885]
[1721416549522,2.83674,3525.2,3524.9,0.03069885]
[1721416549814,5.67323,3525.4,3524.9,0.03069885]
[1721416550111,2.8366,3525.4,3524.9,0.03069885]
[1721416550322,2.83673,3525.2,3524.9,0.03069885]
[1721416550876,5.67374,3525.0,3524.9,0.03069885]
[1721416551102,5.67374,3525.0,3524.1,7.39]
[1721416551103,2.83708,3524.8,3524.2,2.3661]
[1721416552917,2.83725,3524.6,3524.2,2.3661]
[1721416553338,3.0,3525.3,3524.2,2.3661]
[1721416553339,2.83682,3525.1,3524.2,2.3661]
[1721416553492,5.67453,3524.6,3524.2,2.3661]
[1721416553692,2.83726,3524.6,3524.2,2.3661]
[1721416553894,3.0,3525.0,3523.7,7.39]
[1721416553895,2.83718,3524.7,3523.7,7.39]
[1721416554102,2.83728,3524.6,3523.7,8.642904]
[1721416554312,2.83727,3524.6,3523.7,8.642904]
[1721416554678,2.83727,3524.6,3523.6,2.3011]
[1721416554679,3.0,3525.0,3523.6,2.3011]
[1721416554884,2.83758,3524.2,3523.6,2.3011]
[1721416555127,2.83737,3524.4,3523.6,2.3011]
[1721416555438,3.0,3524.3,3523.6,2.3011]
[1721416555597,2.83741,3524.4,3523.6,2.3011]
[1721416555801,3.0,3524.3,3523.6,2.3011]
[1721416556010,2.83753,3524.2,3523.6,2.3011]
[1721416556330,3.0,3524.3,3523.6,2.3011]
[1721416556331,2.83763,3524.1,3523.6,2.3011]
[1721416556652,3.0,3524.3,3523.6,2.3011]
[1721416556808,2.498,3524.9,3523.6,2.3011]
[1721416556809,2.83696,3524.9,3523.9,5.19505]
[1721416557168,2.83696,3524.9,3523.9,2.3573]
[1721416557169,3.0,3524.8,3523.9,2.3573]
[1721416557297,3.0,3524.8,3523.9,2.41404803]
[1721416557492,3.0,3524.9,3524.0,0.5251878]
[1721416557734,3.0,3524.9,3524.0,3.3628378]
[1721416558044,2.83693,3525.0,3524.0,0.5251878]
[1721416558251,3.0,3524.9,3524.1,0.02919049]
[1721416558552,3.0,3525.1,3524.1,2.86679049]
[1721416558712,3.0,3525.1,3524.2,0.80618305]
[1721416559035,5.8368,3525.1,3524.2,0.8353454]
[1721416559248,3.0,3525.1,3524.3,2.43134236]
[1721416559424,2.83626,3525.8,3524.6,2.83719]
[1721416559628,2.83626,3525.8,3524.2,0.8353454]
[1721416559629,2.8364,3525.6,3524.5,5.30142]
[1721416559940,2.83631,3525.7,3524.6,0.0290498]
[1721416559941,2.83648,3525.5,3524.6,0.0290498]
[1721416560238,2.83608,3526.0,3524.9,2.83689]
[1721416560449,5.21202,3526.2,3524.6,0.0290498]
[1721416560450,2.3761,3526.2,3524.6,0.0290498]
[1721416560734,2.3761,3526.2,3524.5,3.28666833]
[1721416560735,2.83645,3525.6,3525.0,0.02893728]
[1721416560935,2.83645,3525.6,3524.1,7.39]
[1721416560936,2.83628,3525.8,3524.8,2.4642]
[1721416561233,2.83633,3525.7,3525.1,0.02884997]
[1721416561397,2.83643,3525.6,3524.8,2.4642]
[1721416561600,2.83631,3525.7,3525.2,0.02875993]
[1721416561816,2.83631,3525.7,3524.8,2.4642]
[1721416562039,2.83615,3525.9,3525.3,0.02873043]
[1721416562267,2.83615,3525.9,3524.8,2.4642]
[1721416562549,3.0,3525.8,3524.9,0.02884294]
[1721416562755,2.83628,3525.8,3524.9,0.02884294]
[1721416562950,3.0,3525.7,3524.9,0.02884294]
[1721416563161,3.0,3525.7,3525.0,2.3221]
[1721416563306,5.83591,3526.2,3525.1,2.83679]
[1721416563506,5.83591,3526.2,3525.1,2.86557531]
[1721416563507,3.0,3526.1,3525.1,2.86557531]
[1721416564448,2.8362,3525.9,3525.1,0.02878531]
[1721416564635,2.83632,3525.7,3525.1,0.02878531]
[1721416565034,3.0,3526.1,3525.1,0.02878531]
[1721416565249,2.2603,3526.2,3525.1,0.02878531]
[1721416565551,2.83671,3525.2,3524.6,7.39]
[1721416565764,2.83683,3525.1,3524.6,7.39]
[1721416565913,2.83701,3524.9,3524.6,7.39]
[1721416566114,2.498,3525.1,3524.1,2.2872]
[1721416566361,2.83711,3524.8,3524.1,2.2872]
[1721416566674,2.83721,3524.6,3524.1,2.2872]
[1721416566821,2.8374,3524.4,3524.0,7.39]
[1721416567215,2.498,3524.7,3524.0,7.39]
[1721416567216,2.83745,3524.3,3524.0,7.39]
[1721416567521,2.83753,3524.2,3524.0,7.39]
[1721416567725,2.83768,3524.0,3523.6,2.4153]
[1721416568035,2.498,3524.7,3523.6,2.4153]
[1721416568036,2.83766,3524.1,3523.6,2.4153]
[1721416568236,2.83769,3524.0,3523.3,0.0771972]
[1721416568441,2.83773,3524.0,3523.3,0.0771972]
[1721416568626,5.83731,3524.5,3523.3,0.0771972]
[1721416568949,2.8379,3523.8,3523.3,0.0771972]
[1721416570242,2.83774,3524.0,3523.3,0.0771972]
[1721416570456,3.0,3524.5,3523.4,2.89487355]
[1721416570617,2.83734,3524.5,3523.4,3.57262151]
[1721416570809,3.0,3524.4,3523.4,3.57262151]
[1721416571824,3.0,3524.4,3523.5,2.83806]
[1721416572067,5.83736,3524.4,3523.4,0.67774796]
[1721416572229,2.83749,3524.3,3523.3,0.0771972]
[1721416572617,3.0,3524.2,3523.3,0.0771972]
[1721416573051,3.0,3524.2,3523.3,2.9154372]
[1721416573356,2.83741,3524.4,3523.4,0.02926782]
[1721416573657,2.83775,3524.0,3523.4,0.02926782]
[1721416574014,2.83781,3523.9,3523.3,0.0771972]
[1721416574429,2.83781,3523.9,3523.4,0.02927333]
[1721416574661,2.83761,3524.1,3523.4,0.02927333]
[1721416574662,2.8379,3523.8,3523.4,0.02927333]
[1721416575217,2.83808,3523.5,3523.4,0.02927333]
[1721416575646,5.83808,3523.5,3523.4,0.02927333]
[1721416576265,3.0,3523.5,3523.4,0.02927333]
[1721416576562,2.498,3524.1,3523.4,0.02927333]
[1721416576563,3.0,3523.7,3523.4,0.02927333]
[1721416576728,4.9938,3525.4,3523.5,2.4241]
[1721416577073,2.8368,3525.1,3524.1,2.4241]
[1721416577357,2.83659,3525.4,3524.3,2.83739]
[1721416577655,2.498,3525.8,3524.3,0.81283468]
[1721416577860,2.83637,3525.7,3524.5,2.83721]
[1721416578166,2.83633,3525.7,3524.6,0.02923012]
[1721416578377,2.8364,3525.6,3524.6,0.02923012]
[1721416578521,2.84,3526.1,3524.3,0.81283468]
[1721416578868,2.83661,3525.4,3524.7,0.02908361]
[1721416579155,2.83639,3525.6,3524.8,0.02905273]